Workbook

Sheet Master Data
B2: MASTER DATA | R2: L-1 | S2: CDEO
B3: PENSION STATEMENT OF THE FINANCIAL YEAR-2022-23 | R3: L-2 | S3: DEEO
B4: नाम : | C4: HEERALAL JAT | D4: PPO No. : | E4: 1088877 | R4: L-3 | S4: ADEO
B5: MOBILE NUMBER : | C5: 9251356291 | D5: TAN No. : | E5: JPRC05652D | R5: L-5 | S5: APC
B6: PAN No. : | C6: ABCDE5555H | D6: बैंक खाता संख्या : | E6: 51XXXXXXXXX96 | R6: L-6 | S6: CBEO
B7: Treasury : | C7: BIKANER | D7: Branch : | E7: Pali | R7: L-7 | S7: ACBEO-1
B8: Financial Year : | C8: 2022-23 | D8: AssessmentYear : | E8: 2023-24 | F8: परम पूज्य गुरुदेव वासुदेव जी महाराज
D9: वरिष्ठ नागरिक | E9: 60 से 80 वर्ष तक
B10: 01 March 2022 Basic Pension (B.P.) (मूल पेंशन) : | C10: 46,550 | D10: Commutation (C) : | E10: 15516 | R10: L-9 | S10: PEEO
R11: L-13 | S11: Head Master
B12: You Tube Video Link | D12: Present By : | R12: L-14 | S12: Lecturer
B13: https://youtu.be/wmRCNVvVD9k | D13: HEERALAL JAT (Sr. Teacher) | R13: L-15 | S13: Sr. Teacher
D14: MGGS BAR (PALI) | R14: L-16 | S14: Teacher L-2
D15: Chandawal Nagar, Sojat, Dist.- PALI | R15: L-17 | S15: Teacher L-1
B16: https://youtu.be/wmRCNVvVD9k | D16: heeralaljatchandawal@gmail.com | R16: L-18 | S16: Prabodhak
R17: L-19 | S17: PTI - 1
R18: L-20 | S18: PTI - II

Sheet GA55
B1: =IF(AND('Master Data'!B3=""),"",'Master Data'!B3) -> PENSION STATEMENT OF THE FINANCIAL YEAR-2022-23
A2: Name :- | D2: =UPPER(IF(AND('Master Data'!C4=""),"",'Master Data'!C4)) -> HEERALAL JAT | F2: PPO No. : | I2: =UPPER(IF(AND('Master Data'!E4=""),"",'Master Data'!E4)) -> 1088877 | L2: MOBILE NUMBER : | O2: =UPPER(IF(AND('Master Data'!C5=""),"",'Master Data'!C5)) -> 9251356291
A3: PAN No. :- | C3: =UPPER(IF(AND('Master Data'!C6=""),"",'Master Data'!C6)) -> ABCDE5555H | E3: TAN No : | G3: =UPPER(IF(AND('Master Data'!E5=""),"",'Master Data'!E5)) -> JPRC05652D | I3: Treasury : | K3: =UPPER(IF(AND('Master Data'!C7=""),"",'Master Data'!C7)) -> BIKANER | N3: Bank A/C. : | P3: =UPPER(IF(AND('Master Data'!E6=""),"",'Master Data'!E6)) -> 51XXXXXXXXX96
A4: S.N. | B4: Month | C4: Basic (B) | D4: Commutation (C) | E4: Red Pension | F4: DA | G4: IR | H4: Additional | I4: Med Allw | J4: DH Allw | K4: Other Allw | L4: Arrear | M4: Total Allowance (TA) | N4: TDS (INCOME TAX) | O4: Recovery | P4: Other | Q4: Total Deduction (TD) | R4: Net Amount | T4: https://youtu.be/V585dbXugiI
E5: (B-C) | R5: (TA-TD)
A6: 1 | B6: 2022-03-01 | C6: =IFERROR(IF(AND('Master Data'!C10=""),"",'Master Data'!C10),"") -> 46550 | D6: =IFERROR(IF(AND('Master Data'!E10=""),"",'Master Data'!E10),"") -> 15516 | E6: =IFERROR(IF(B6="","",IF(C6="","",IF(D6="","",SUM(C6-D6)))),"") -> 31034 | F6: =IFERROR(IF(AND(C6=""),"",ROUND(C6*31%,0)),"") -> 14431 | M6: =IFERROR(IF(AND(B6="",C6="",E6="",F6=""),"",SUM(E6:L6)),"") -> 45465 | Q6: =IFERROR(IF(AND(B6="",M6=""),"",SUM(N6:P6)),"") -> 0 | R6: =IFERROR(IF(AND(B6="",M6="",Q6=""),"",SUM(M6-Q6)),"") -> 45465 | V6: SHEET PASSWORD
A7: 2 | B7: 2022-04-01 | C7: =IFERROR(IF(AND(C6=""),"",C6),"") -> 46550 | D7: =IFERROR(IF(AND(D6=""),"",D6),"") -> 15516 | E7: =IFERROR(IF(B7="","",IF(C7="","",IF(D7="","",SUM(C7-D7)))),"") -> 31034 | F7: =IFERROR(IF(AND(C7=""),"",ROUND(C7*34%,0)),"") -> 15827 | G7: =IFERROR(IF(AND(G6=""),"",G6),"") ->  | L7: =IFERROR(IF(AND(C6="",C7=""),"",ROUND(C6*3%,0))*3,"") -> 4191 | M7: =IFERROR(IF(AND(B7="",C7="",E7="",F7=""),"",SUM(E7:L7)),"") -> 51052 | O7: =IFERROR(IF(AND(O6=""),"",O6),"") ->  | P7: =IFERROR(IF(AND(P6=""),"",P6),"") ->  | Q7: =IFERROR(IF(AND(B7="",M7=""),"",SUM(N7:P7)),"") -> 0 | R7: =IFERROR(IF(AND(B7="",M7="",Q7=""),"",SUM(M7-Q7)),"") -> 51052 | V7: Pansioner$2023
A8: 3 | B8: 2022-05-01 | C8: =IFERROR(IF(AND(C7=""),"",C7),"") -> 46550 | D8: =IFERROR(IF(AND(D7=""),"",D7),"") -> 15516 | E8: 31034 | F8: =IFERROR(IF(AND(C8=""),"",ROUND(C8*34%,0)),"") -> 15827 | G8: =IFERROR(IF(AND(G7=""),"",G7),"") ->  | H8: =IFERROR(IF(AND(H7=""),"",H7),"") ->  | I8: =IFERROR(IF(AND(I7=""),"",I7),"") ->  | J8: =IFERROR(IF(AND(J7=""),"",J7),"") ->  | K8: =IFERROR(IF(AND(K7=""),"",K7),"") ->  | M8: 46861 | N8: =IFERROR(IF(AND(N7=""),"",N7),"") ->  | O8: =IFERROR(IF(AND(O7=""),"",O7),"") ->  | P8: =IFERROR(IF(AND(P7=""),"",P7),"") ->  | Q8: 0 | R8: 46861
A9: 4 | B9: 2022-06-01 | C9: 46550 | D9: 15516 | E9: 31034 | F9: 15827 | M9: 46861 | Q9: 0 | R9: 46861
A10: 5 | B10: 2022-07-01 | C10: 46550 | D10: 15516 | E10: 31034 | F10: 15827 | M10: 46861 | Q10: 0 | R10: 46861
A11: 6 | B11: 2022-08-01 | C11: 46550 | D11: 15516 | E11: 31034 | F11: 15827 | M11: 46861 | Q11: 0 | R11: 46861
A12: 7 | B12: 2022-09-01 | C12: 46550 | D12: 15516 | E12: 31034 | F12: 15827 | H12: =IFERROR(IF(AND(H11=""),"",H11),"") ->  | M12: 46861 | Q12: 0 | R12: 46861
A13: 8 | B13: 2022-10-01 | C13: 46550 | D13: 15516 | E13: 31034 | F13: =IFERROR(IF(AND(C13=""),"",ROUND(C13*38%,0)),"") -> 17689 | L13: =IFERROR(IF(AND(C13="",C12=""),"",ROUND(C6*4%,0))*3,"") -> 5586 | M13: 54309 | Q13: 0 | R13: 54309
A14: 9 | B14: 2022-11-01 | C14: 46550 | D14: 15516 | E14: 31034 | F14: =IFERROR(IF(AND(C14=""),"",ROUND(C14*38%,0)),"") -> 17689 | M14: 48723 | Q14: 0 | R14: 48723
A15: 10 | B15: 2022-12-01 | C15: 46550 | D15: 15516 | E15: 31034 | F15: 17689 | M15: 48723 | Q15: 0 | R15: 48723
A16: 11 | B16: 2023-01-01 | C16: 46550 | D16: 15516 | E16: 31034 | F16: 17689 | M16: 48723 | Q16: 0 | R16: 48723
A17: 12 | B17: 2023-02-01 | C17: 46550 | D17: 15516 | E17: 31034 | F17: 17689 | M17: 48723 | Q17: 0 | R17: 48723
A18: 13
A19: 14 | Q19: =IFERROR(IF(AND(B19="",M19=""),"",SUM(N19:P19)),"") ->  | R19: =IFERROR(IF(AND(B19="",M19="",Q19=""),"",SUM(M19-Q19)),"") -> 
A20: 15
B21: TOTAL F | C21: =IF(AND($D$2="",$C$3="",$I$2=""),"",SUM(C6:C20)) -> 558600 | D21: =IF(AND($D$2="",$C$3="",$I$2=""),"",SUM(D6:D20)) -> 186192 | E21: 372408 | F21: 197838 | G21: 0 | H21: 0 | I21: 0 | J21: 0 | K21: 0 | L21: 9777 | M21: 580023 | N21: 0 | O21: 0 | P21: 0 | Q21: 0 | R21: 580023
C23: =UPPER(IF(AND('Master Data'!C4=""),"",'Master Data'!C4)) -> HEERALAL JAT
C24: Signature

Sheet COMPUTATION
A1: =IF(AND('Master Data'!B3=""),"",'Master Data'!B3) -> PENSION STATEMENT OF THE FINANCIAL YEAR-2022-23
C2: आयकर गणना प्रपत्र वर्ष - | F2: =IF(AND('Master Data'!C8=""),"",'Master Data'!C8) -> 2022-23 | H2: ( कर निर्धारण वर्ष) - | J2: =IF(AND('Master Data'!E8=""),"",'Master Data'!E8) -> 2023-24 | L2: Old Tax Regime
A3: 1 | B3: नाम :- | D3: =UPPER(IF(AND('Master Data'!C4=""),"",'Master Data'!C4)) -> HEERALAL JAT | I3: पीपीओ न. :- | J3: =UPPER(IF(AND('Master Data'!E4=""),"",'Master Data'!E4)) -> 1088877 | M3: PAN : | N3: =UPPER(IF(AND('Master Data'!C6=""),"",'Master Data'!C6)) -> ABCDE5555H
A4: 2 | B4: आय : वर्ष 2022-23 में प्राप्त कुल आय ( कर योग्य मूल्यों सहित ) | N4: रु. | O4: =IF('GA55'!M21="","",'GA55'!M21) -> 580023
A5: 3 | B5: धारा 10(14) के अंतर्गत भत्ते तथा अन्य भत्ते जो कर मुक्त है I | N5: रु. | T5: SHEET PASSWORD
A6: 4 | B6: शेष ( 2-3) | N6: रु. | O6: =SUM(O4-O5) -> 580023 | T6: Pansioner$2023
A7: 5 | B7: (i) मनोरंजन भत्ता धारा 16 (ii) के अंतर्गत | K7: 0
B8: (ii) व्यवसाय कर धारा 16 (iii) के अंतर्गत | K8: 0
B9: (iii) स्टैण्डर्ड डीडेक्सन (Standard Deduction) 50,000 (अधिकतम ) | K9: =IF($L$2="Old Tax Regime",50000,0) -> 50000 | N9: रु. | O9: =SUM(K7:M9) -> 50000
A10: 6 | B10: शेष ( 4-5) | N10: रु. | O10: =SUM(O6-O9) -> 530023
A11: 7 | B11: बचत खाते पर ब्याज : | E11: 1000 | G11: अन्य स्रोत से आय : | I11: 0
A12: 8 | B12: एफडी व अन्य आय पर प्राप्त ब्याज राशि | E12: 0 | G12: Bonds से प्राप्त ब्याज | I12: 0 | J12: योग (8 + 9) | N12: रु. | O12: =E11+E12+I11+I12 -> 1000
A13: 9 | B13: सकल आय | N13: रु. | O13: =O10+O12 -> 531023
A14: 10 | B14: घटाए कटोतियाँ :- धारा US 80C, 80CCC,80CCD (1)
B15: (A) अधिकतम सीमा 1,50,000/- (धारा 80CCE), धारा 80CCD(2), तथा धारा 80CCD(1B) के अतिरिक्त
B16: (i) | C16: राज्य बीमा (SI) | F16: रु. | G16: 0 | H16: (xi) | I16: राष्ट्रीय बचत पत्र पर अदत ब्याज | L16: रु. | M16: 0
B17: (ii) | C17: L.I.C. | F17: रु. | G17: 0 | H17: (xii) | I17: टियुशन फ़ीस | L17: रु. | M17: 0
B18: (iii) | C18: राष्ट्रीय बचत पत्र (NSC) | F18: रु. | G18: 0 | H18: (xiii) | I18: इक्विटी लिंक सेविंग स्कीम | L18: रु. | M18: 0
B19: (iv) | C19: लोक भविष्य निधि (PPF) | F19: रु. | G19: 0 | H19: (xiv) | I19: स्थगत वार्षिकी (Defferred Annuty) | L19: रु. | M19: 0
B20: (v) | C20: राष्ट्रीय बचत पत्र स्कीम (NSS) | F20: रु. | G20: 0 | H20: (xv) | I20: पी.एल.आई . (PLI) | L20: रु. | M20: 0
B21: (vi) | C21: सामान्य प्रावधायी निधि GPF) | F21: रु. | G21: 0 | H21: (xvi) | I21: म्यूच्यूअल फण्ड | L21: रु. | M21: 0
B22: (vii) | C22: सामूहिक बीमा प्रीमियम (G.Ins.) | F22: रु. | G22: 0 | H22: (xvii) | I22: सुकन्या समृद्धि योजना में जमा राशि | L22: रु. | M22: 0
B23: (viii) | C23: यू एल आई पी / वार्षिक प्लान | F23: रु. | G23: 0 | H23: (xviii) | I23: अन्य व फिक्स डिपोजिट (5 वर्ष हेतु ) | L23: रु. | M23: 0
B24: (ix) | C24: गृह ऋण किस्त (HBA Premium) | F24: रु. | G24: 0 | H24: (xix) | I24: अन्य राशि जो धारा 80 C के अंतर्गत छुट | L24: रु. | M24: 0
B25: (x) | C25: जीवन बीमा (Extra LIC) | F25: रु. | G25: 0 | H25: (xx) | I25: SCSS | L25: रु. | M25: 0
B26: योग ( i से xx ) | L26: रु. | M26: =SUM(G16:G25)+SUM(M16:M25) -> 0
B27: अधिकतम कटोती राशि 1.50 लाख तक :- | N27: रु. | O27: =IF($L$2="Old Tax Regime",IF(M26<150001,ROUND(M26,0),150000),0) -> 0
A28: 11 | B28: अन्य कटोतियाँ
B29: 1. धारा 80 D चिकित्सा बीमा प्रीमियम (स्वयं पति पत्नि व बच्चों के लिए रु. 25,000 माता - पिता के लिए रु. 25,000 , सीनियर सिटीजन रु. 50,000 ) | N29: रु. | O29: 0
B30: 2. धारा 80DD विकलांग आश्रितों के चिकित्सा उपचार (अधिकतम 75,000 तथा 80% या अधिक विकलांगता ( 1,25,000) | N30: रु. | O30: 0
B31: 3. धारा 80DDB विशिष्ट रोगों के उपचार हेतु छुट (अधिकतम रु. 40,000, सीनियर सिटीजन हेतु रु. 1,00,000) | N31: रु. | O31: 0
B32: 4. धारा 80E उच्च शिक्षा हेतु लिए गए ऋण का ब्याज | N32: रु. | O32: 0
B33: 5. धारा 80EE (First time home boyer who has taken a loan from a recognized financial institution) | N33: रु. | O33: 0
B34: 6. धारा 80EEA भारत में पहली बार घर खरीदने पर अतिरिक्त कर कटोती में छुट 1,50,000 तक | N34: रु. | O34: 0
B35: 7. धारा 80EEB निजी इस्तेमाल के लिए इलेक्ट्रॉनिक वाहनों पर चुकाए गए ब्याज पर छुट 1,50,000 तक | N35: रु. | O35: 0
B36: 8. धारा 80G धर्मार्थ संस्थाओ आदि को दिए दान ( क श्रेणी में 100 प्रतिशत एव ख श्रेणी में 50 प्रतिशत) (केंद्र एव राज्य सरकार के फण्ड में ) | N36: रु. | O36: 0
B37: 9. धारा 80U स्थाई रूप से शारीरिक असमर्थता की दशा में (अधिकतम 75,000 तथा अधिनियम 1995 के अनुसार 1,25,000) | N37: रु. | O37: 0
B38: 10. धारा 80 TTB बचत खाते पर अधिकतम ब्याज पर 50,000 194(IA) , ( वरिष्ठ नागरिकों के लिए ब्याज पर छुट 50000 तक ) | N38: रु. | O38: =IF($L$2="Old Tax Regime",IF(E11>50000,50000,E11),0) -> 1000
B39: 11. धारा 80 GGA अनुमोदित वैज्ञानिक, सामाजिक, ग्रामीण विकास आदि हेतु दिया गया दान | N39: रु. | O39: 0
B40: 12. धारा 80 GGC राजनैतिक दलों को दान के रूप में (आय का अधिकतम 10%) | N40: रु. | O40: 0
B41: कुल योग 11 ( 1 से 12 तक ) | N41: रु. | O41: =SUM(O29:O40) -> 1000
A42: 12 | B42: कुल कटोती ( 10+ 11) | N42: रु. | O42: =O27+O41 -> 1000
A43: 13 | B43: कर योग्य आय ( 9 - 12 ) | N43: रु. | O43: =(O13-O42) -> 530023
A44: 14 | B44: कुल आय की राशि को सम्पूर्ण करना ( दस के गुणांक में ) धारा 288A | N44: रु. | O44: =ROUND(O43,-1) -> 530020
A45: 15 | B45: आयकर की गणना उपर्युक्त कॉलम 15 के आधार पर
B46: सामान्य नागरिक | F46: वरिष्ठ नागरिक (60 से 80 वर्ष तक) | J46: 80 वर्ष या अधिक आयु
B47: Up to Rs. 2,50,000 | E47: 0% | F47: =IF($L$2="Old Tax Regime","Up to Rs. 3,00,000","Up to Rs. 2,50,000") -> Up to Rs. 3,00,000 | I47: 0% | J47: =IF($L$2="Old Tax Regime","","Up to Rs. 2,50,000") ->  | M47: 0% | N47: रु. | O47: 0
B48: 2,50,001 to 5,00,000 | E48: 5% | F48: =IF($L$2="Old Tax Regime","3,00,001 to 5,00,000"," 2,50,001 to 5,00,000") -> 3,00,001 to 5,00,000 | I48: 5% | J48: =IF($L$2="Old Tax Regime","Up to Rs. 5,00,000","2,50,001 to 5,00,000") -> Up to Rs. 5,00,000 | M48: =IF($L$2="Old Tax Regime","0%","5%") -> 0% | N48: रु. | O48: =IF($L$2="Old Tax Regime",ROUND(IF(O44<=300000,0,IF(O44>=500000,10000,IF(O44<=500000,0+(O44-300000)*0.05))),0),ROUND(IF(O44<300001,0,IF(O44>500000,10000,((O44-300000)*0.05))),0)) -> 10000
B49: =IF($L$2="Old Tax Regime","5,00,001 to 10,00,000","5,00,001 to 7,50,000") -> 5,00,001 to 10,00,000 | E49: =IF($L$2="Old Tax Regime","20%","10%") -> 20% | F49: =IF($L$2="Old Tax Regime","5,00,001 to 10,00,000","5,00,001 to 7,50,000") -> 5,00,001 to 10,00,000 | I49: =IF($L$2="Old Tax Regime","20%","10%") -> 20% | J49: =IF($L$2="Old Tax Regime","5,00,001 to 10,00,000","5,00,001 to 7,50,000") -> 5,00,001 to 10,00,000 | M49: =IF($L$2="Old Tax Regime","20%","10%") -> 20% | N49: रु. | O49: =IF($L$2="Old Tax Regime",ROUND(IF(O44<=500000,0,IF(O44>=1000000,100000,IF(O44<=1000000,(O44-500000)*0.2,"0"))),0),ROUND(IF(O44<500001,0,IF(O44>750000,25000,((O44-500000)*0.1))),0)) -> 6004
B50: =IF($L$2="Old Tax Regime","Above 10,00,000"," 7,50,001 to 10,00,000") -> Above 10,00,000 | E50: =IF($L$2="Old Tax Regime","30%","15%") -> 30% | F50: =IF($L$2="Old Tax Regime","Above 10,00,000"," 7,50,001 to 10,00,000") -> Above 10,00,000 | I50: =IF($L$2="Old Tax Regime","30%","15%") -> 30% | J50: =IF($L$2="Old Tax Regime","Above 10,00,000"," 7,50,001 to 10,00,000") -> Above 10,00,000 | M50: =IF($L$2="Old Tax Regime","30%","15%") -> 30% | N50: रु. | O50: =IF($L$2="Old Tax Regime",ROUND(IF(O44>1000000,(O44-1000000)*0.3,"0"),0),ROUND(IF(O44<750001,0,IF(O44>1000000,37500,((O44-750000)*0.15))),0)) -> 0
B51: =IF($L$2="Old Tax Regime"," ","10,00,001 to 12,50,000") ->  | E51: =IF($L$2="Old Tax Regime"," ","20%") ->  | F51: =IF($L$2="Old Tax Regime"," ","10,00,001 to 12,50,000") ->  | I51: =IF($L$2="Old Tax Regime"," ","20%") ->  | J51: =IF($L$2="Old Tax Regime"," ","10,00,001 to 12,50,000") ->  | M51: =IF($L$2="Old Tax Regime"," ","20%") ->  | N51: =IF($L$2="Old Tax Regime"," ","रु.") ->  | O51: =IF($L$2="Old Tax Regime","",ROUND(IF(O44<1000001,0,IF(O44>1250000,50000,((O44-1000000)*0.2))),0)) -> 
B52: =IF($L$2="Old Tax Regime"," ","12,50,001 to 15,00,000") ->  | E52: =IF($L$2="Old Tax Regime"," ","25%") ->  | F52: =IF($L$2="Old Tax Regime"," ","12,50,001 to 15,00,000") ->  | I52: =IF($L$2="Old Tax Regime"," ","25%") ->  | J52: =IF($L$2="Old Tax Regime"," ","12,50,001 to 15,00,000") ->  | M52: =IF($L$2="Old Tax Regime"," ","25%") ->  | N52: =IF($L$2="Old Tax Regime"," ","रु.") ->  | O52: =IF($L$2="Old Tax Regime","",ROUND(IF(O44<1250001,0,IF(O44>1500000,62500,((O44-1250000)*0.25))),0)) -> 
B53: =IF($L$2="Old Tax Regime"," ","Above Rs. 15,00,000") ->  | E53: =IF($L$2="Old Tax Regime"," ","30%") ->  | F53: =IF($L$2="Old Tax Regime"," ","Above Rs. 15,00,000") ->  | I53: =IF($L$2="Old Tax Regime"," ","30%") ->  | J53: =IF($L$2="Old Tax Regime"," ","Above Rs. 15,00,000") ->  | M53: =IF($L$2="Old Tax Regime"," ","30%") ->  | N53: =IF($L$2="Old Tax Regime"," ","रु.") ->  | O53: =IF($L$2="Old Tax Regime","",ROUND(IF(O44<1500001,0,(O44-1500000)*0.3),0)) -> 
B54: (1) योग आयकर | N54: रु. | O54: =SUM(O47:O53) -> 16004 | AC54: =ROUND(IF(O44<250001,0,IF(O44>500000,12500,((O44-250000)*0.05))),0)+ROUND(IF(O44<500001,0,IF(O44>750000,25000,((O44-500000)*0.1))),0)+ROUND(IF(O44<750001,0,IF(O44>1000000,37500,((O44-750000)*0.15))),0)+ROUND(IF(O44<1000001,0,IF(O44>1250000,50000,((O44-1000000)*0.2))),0)+ROUND(IF(O44<1250001,0,IF(O44>1500000,62500,((O44-1250000)*0.25))),0)+ROUND(IF(O44<1500001,0,(O44-1500000)*0.3),0) -> 15502
B55: (2) छुट धारा 87(A) (5 लाख की कर योग्य आय पर आयकर की छुट अधिकतम रु. 12500/- तक) | N55: रु. | O55: =IF(O44>500000,0,IF(O54<12500,O54,12500)) -> 0
B56: (3) शेष आयकर (1-2) | N56: रु. | O56: =O54-O55 -> 16004
B57: 4) | C57: शिक्षा एवं चिकित्सा उपकर 4% (आयकर पर ) | N57: रु. | O57: =ROUND((O56*0.04),0) -> 640
B58: कुल आयकर (3-4) | N58: रु. | O58: =SUM(O56:O57) -> 16644
A59: 16 | B59: घटाइये :- राहत धारा 89 के तहत | N59: रु. | O59: 0
A60: 17 | B60: कुल शेष आयकर | N60: रु. | O60: =O58-O59 -> 16644
A61: 18 | B61: आयकर कटौती का विवरण | E61: सितम्बर 2022 तक कुल राशि | H61: अक्टूम्बर 22 से दिसम्बर 22 तक कुल राशि | J61: जनवरी 2023 राशि | K61: फरवरी 2023 राशि | M61: टी.डी.एस. की राशि | O61: कुलयोग कॉलम 19
E62: =SUM('GA55'!N6:N12) -> 0 | H62: =SUM('GA55'!N13:N15) -> 0 | J62: ='GA55'!N16 ->  | K62: ='GA55'!N17 ->  | M62: =SUM('GA55'!N18:N19) -> 0 | O62: =SUM(E62,H62,J62,K62,M62) -> 0
A63: =IF(O60>O62,"Income Tax Payable","Income Tax Refundable") -> Income Tax Payable | N63: रु. | O63: =IF(O60>O62,SUM(O60-O62),SUM(O62-O60)) -> 16644
L65: हस्ताक्षर कार्मिक

Sheet Form No. 16
B1: FORM NO. 16
B2: [(See Rule 31(1)(a)]
B3: PART-A
B4: Certificate under section 203 of the income-tax act, 1961 for Tax deducted at source on Salary.
B5: Name and address of the Employer | G5: Name and adress of the Employee
G6: ='Master Data'!C4 -> HEERALAL JAT
B8: PAN of the Deductor | E8: TAN of the Deductor | G8: PAN of the Employee | J8: Employee Ref No.
G9: ='Master Data'!C6 -> ABCDE5555H | J9: ='Master Data'!E6 -> 51XXXXXXXXX96
B10: CIT (TDS) | G10: Assess. Year | I10: Peroid with the Employer
B11: Adress | C11: The Commissioner of Income Tax, Pali | G11: 2023-24 | I11: From | K11: To
B12: City | C12: PALI | E12: PIN Code | F12: 306401 | I12: 01-4-2022 | K12: 31-03-2023
B13: Summary of amount paid/credited and tax deducted at source thereon in respect of the employee
B14: Quarters | C14: Receipt Numbers of original quarterly statements of TDS under sub-secion (3) of section 200 | F14: Amount paid/ credited | G14: Amount of tax deducted (Rs.) | J14: Amount of tax deposited/ remitted (Rs.) | R14: SHEET PASSWORD
B15: 1st | G15: =SUM('GA55'!N6:N8) -> Rs. 0 | J15: =G15+F15 -> Rs. 0 | R15: Pansioner$2023
B16: 2nd | G16: =SUM('GA55'!N9:N11) -> Rs. 0 | J16: =G16+F16 -> Rs. 0
B17: 3rd | G17: =SUM('GA55'!N12:N14) -> Rs. 0 | J17: Rs. 0
B18: 4th | G18: =SUM('GA55'!N15:N19) -> Rs. 0 | J18: Rs. 0
B19: TOTAL (Rs.) | F19: =SUM(F15:F18) -> Rs. 0 | G19: =SUM(G15:G18) -> Rs. 0 | J19: =SUM(J15:J18) -> Rs. 0
B20: I. Details of tax deducted and deposited in the Central Government account through book adjustment
B21: (The Deductor to provide payment-wise details of tax deducted and deposited with respect to the deductee)
B22: S.N. | C22: Tax Deposited in respect of the deductee (Rs) | E22: Book identification number (BIN)
E23: Receipt numbers of form No. 24G | F23: DDO serial number in Form No. 24G | G23: Date of transfer voucher (dd/mm/yyyy) | J23: Status of matching with Form No. 24G
B24: 1 | C24: ='GA55'!N6 -> Rs. 0 | J24: =IF(E24>"0","Yes","-") -> -
B25: 2 | C25: ='GA55'!N7 ->  | J25: =IF(E25>"0","Yes","-") -> -
B26: 3 | C26: ='GA55'!N8 ->  | J26: -
B27: 4 | C27: ='GA55'!N9 ->  | J27: -
B28: 5 | C28: ='GA55'!N10 ->  | J28: -
B29: 6 | C29: ='GA55'!N11 ->  | J29: -
B30: 7 | C30: ='GA55'!N12 ->  | J30: -
B31: 8 | C31: ='GA55'!N13 ->  | J31: -
B32: 9 | C32: ='GA55'!N14 ->  | J32: -
B33: 10 | C33: ='GA55'!N15 ->  | J33: -
B34: 11 | C34: ='GA55'!N16 ->  | J34: -
B35: 12 | C35: ='GA55'!N17 ->  | J35: -
B36: 13 | C36: ='GA55'!N18+'GA55'!N19 -> Rs. 0 | J36: -
B37: Total | C37: =SUM(C24:D36) -> Rs. 0
B38: II. Details of Tax deducted and deposited in Central Government Account through Challan.
B39: (The deducter to provide payment-wise details of tax deducted and deposited with respect to the deductee)
B40: S.N. | C40: Tax Deposited in respect on of the deductee (Rs) | E40: Challan identification number (CIN)
E41: BSR code of the Bank Branch | G41: Date on which tax deposited (dd/mm/yyyy) | I41: Challan Serial Number | K41: Status of matching with OLTAS
B42: 1 | K42: =IF(C42>"0","Yes","-") -> -
B43: 2 | K43: =IF(C43>"0","Yes","-") -> -
B44: 3 | K44: -
B45: 4 | K45: -
B46: 5 | K46: -
B47: 6 | K47: -
B48: 7 | K48: -
B49: 8 | K49: -
B50: 9 | K50: -
B51: 10 | K51: -
B52: 11 | K52: -
B53: 12 | K53: -
B54: Total | C54: =SUM(C42:D53) -> 0
B55: :: 2 ::
B56: Verification
B57: I | C57: =B6&"," -> , | F57: Son/Daughter of | K57: working in the
B58: capacity of | G58: (designation) do hereby certify that a sum of
B59: Rs. - | C59: =J19 -> 0 | D59: =IF(OR(LEN(FLOOR(C59,1))=13,FLOOR(C59,1)<=0),"Out of range",PROPER(SUBSTITUTE(CONCATENATE(CHOOSE(MID(TEXT(INT(C59),REPT(0,12)),1,1)+1,"","one hundred ","two hundred ","three hundred ","four hundred ","five hundred ","six hundred ","seven hundred ","eight hundred ","nine hundred "),CHOOSE(MID(TEXT(INT(C59),REPT(0,12)),2,1)+1,"",CHOOSE(MID(TEXT(INT(C59),REPT(0,12)),3,1)+1,"ten","eleven","twelve","thirteen","fourteen","fifteen","sixteen","seventeen","eighteen","nineteen"),"twenty","thirty","forty","fifty","sixty","seventy","eighty","ninety"),IF(VALUE(MID(TEXT(INT(C59),REPT(0,12)),2,1))>1,CHOOSE(MID(TEXT(INT(C59),REPT(0,12)),3,1)+1,"","-one","-two","-three","-four","-five","-six","-seven","-eight","-nine"),IF(VALUE(MID(TEXT(INT(C59),REPT(0,12)),2,1))=0,CHOOSE(MID(TEXT(INT(C59),REPT(0,12)),3,1)+1,"","one","two","three","four","five","six","seven","eight","nine"),"")),IF(C59>=10^9," billion ",""),CHOOSE(MID(TEXT(INT(C59),REPT(0,12)),4,1)+1,"","one hundred ","two hundred ","three hundred ","four hundred ","five hundred ","six hundred ","seven hundred ","eight hundred ","nine hundred "),CHOOSE(MID(TEXT(INT(C59),REPT(0,12)),5,1)+1,"",CHOOSE(MID(TEXT(INT(C59),REPT(0,12)),6,1)+1,"ten","eleven","twelve","thirteen","fourteen","fifteen","sixteen","seventeen","eighteen","nineteen"),"twenty","thirty","forty","fifty","sixty","seventy","eighty","ninety"),IF(VALUE(MID(TEXT(INT(C59),REPT(0,12)),5,1))>1,CHOOSE(MID(TEXT(INT(C59),REPT(0,12)),6,1)+1,"","-one","-two","-three","-four","-five","-six","-seven","-eight","-nine"),IF(VALUE(MID(TEXT(INT(C59),REPT(0,12)),5,1))=0,CHOOSE(MID(TEXT(INT(C59),REPT(0,12)),6,1)+1,"","one","two","three","four","five","six","seven","eight","nine"),"")),IF(VALUE(MID(TEXT(INT(C59),REPT(0,12)),4,3))>0," million ",""),CHOOSE(MID(TEXT(INT(C59),REPT(0,12)),7,1)+1,"","one hundred ","two hundred ","three hundred ","four hundred ","five hundred ","six hundred ","seven hundred ","eight hundred ","nine hundred "),CHOOSE(MID(TEXT(INT(C59),REPT(0,12)),8,1)+1,"",CHOOSE(MID(TEXT(INT(C59),REPT(0,12)),9,1)+1,"ten","eleven","twelve","thirteen","fourteen","fifteen","sixteen","seventeen","eighteen","nineteen"),"twenty","thirty","forty","fifty","sixty","seventy","eighty","ninety"),IF(VALUE(MID(TEXT(INT(C59),REPT(0,12)),8,1))>1,CHOOSE(MID(TEXT(INT(C59),REPT(0,12)),9,1)+1,"","-one","-two","-three","-four","-five","-six","-seven","-eight","-nine"),IF(VALUE(MID(TEXT(INT(C59),REPT(0,12)),8,1))=0,CHOOSE(MID(TEXT(INT(C59),REPT(0,12)),9,1)+1,"","one","two","three","four","five","six","seven","eight","nine"),"")),IF(VALUE(MID(TEXT(INT(C59),REPT(0,12)),7,3))," thousand ",""),CHOOSE(MID(TEXT(INT(C59),REPT(0,12)),10,1)+1,"","one hundred ","two hundred ","three hundred ","four hundred ","five hundred ","six hundred ","seven hundred ","eight hundred ","nine hundred "),CHOOSE(MID(TEXT(INT(C59),REPT(0,12)),11,1)+1,"",CHOOSE(MID(TEXT(INT(C59),REPT(0,12)),12,1)+1,"ten","eleven","twelve","thirteen","fourteen","fifteen","sixteen","seventeen","eighteen","nineteen"),"twenty","thirty","forty","fifty","sixty","seventy","eighty","ninety"),IF(VALUE(MID(TEXT(INT(C59),REPT(0,12)),11,1))>1,CHOOSE(MID(TEXT(INT(C59),REPT(0,12)),12,1)+1,"","-one","-two","-three","-four","-five","-six","-seven","-eight","-nine"),IF(VALUE(MID(TEXT(INT(C59),REPT(0,12)),11,1))=0,CHOOSE(MID(TEXT(INT(C59),REPT(0,12)),12,1)+1,"","one","two","three","four","five","six","seven","eight","nine"),"")))," "," ")&IF(FLOOR(C59,1)>1," Rupees"," Rupees"))&IF(ISERROR(FIND(".",C59,1)),""," and "&PROPER(IF(LEN(LEFT(TRIM(MID(SUBSTITUTE('[2]16 NO.'!$B$62,".",REPT(" ",255)),255,200)),2))=1,CHOOSE(1*LEFT(TRIM(MID(SUBSTITUTE('[2]16 NO.'!$B$62,".",REPT(" ",255)),255,200)),2),"ten","twenty","thirty","forty","fifty","sixty","seventy","eighty","ninety")&" Paise","")&CONCATENATE(CHOOSE(MID(TEXT(INT(LEFT(TRIM(MID(SUBSTITUTE('[2]16 NO.'!$B$62,".",REPT(" ",255)),255,200)),2)),REPT(0,12)),11,1)+1,"",CHOOSE(MID(TEXT(INT(LEFT(TRIM(MID(SUBSTITUTE('[2]16 NO.'!$B$62,".",REPT(" ",255)),255,200)),2)),REPT(0,12)),12,1)+1,"ten","eleven","twelve","thirteen","fourteen","fifteen","sixteen","seventeen","eighteen","nineteen"),"twenty","thirty","forty","fifty","sixty","seventy","eighty","ninety"),IF(VALUE(MID(TEXT(INT(LEFT(TRIM(MID(SUBSTITUTE('[2]16 NO.'!$B$62,".",REPT(" ",255)),255,200)),2)),REPT(0,12)),11,1))>1,CHOOSE(MID(TEXT(INT(LEFT(TRIM(MID(SUBSTITUTE('[2]16 NO.'!$B$62,".",REPT(" ",255)),255,200)),2)),REPT(0,12)),12,1)+1,"","-one","-two","-three","-four","-five","-six","-seven","-eight","-nine")&" Paise",IF(LEFT(TRIM(MID(SUBSTITUTE('[2]16 NO.'!$B$62,".",REPT(" ",255)),255,200)),2)="01","one Paise",IF(LEFT(TRIM(MID(SUBSTITUTE('[2]16 NO.'!$B$62,".",REPT(" ",255)),255,200)),1)="0",CHOOSE(MID(TEXT(INT(LEFT(TRIM(MID(SUBSTITUTE('[2]16 NO.'!$B$62,".",REPT(" ",255)),255,200)),2)),REPT(0,12)),12,1)+1,"","one","two","three","four","five","six","seven","eight","nine")&" Paise",""))))))) -> Out of range | I59: (in words) has been deducted
B60: and deposited to the credit of the Central Govt.. I further certify that the information given above is true, complete and correct
B61: and is based on the books of account, documents, TDS statement, TDS deposited and other available records.
B62: Place | D62: =G7 -> 0
B63: Date | D63: =TODAY() -> 2023-01-16 | F63: Signature of person responsible for deduction of tax
B64: Designation | D64: =D58 -> 0 | F64: Full name : | G64: =B6 -> 0
B65: PART- B (Annexure)
B66: DETAILS OF SALARY PAID AND ANY OTHER INCOME AND TAX DEDUCTED
B67: 1. Gross salary
B68: (a) Salary as per provisions contained in section 17(1) | G68: =COMPUTATION!O4 -> Rs. 580,023.00
B69: (b) Value of perquisites u/s 17(2) (as per Form No. 12BA, wherever applicable)
B70: (c) Profits in lieu of salary under section 17(3) (as per Form No. 12BA, wherever applicable) | G70: 0
B71: (d) Total (a+b+c) | I71: =G68+G69+G70 -> Rs. 580,023.00
B72: 2. Less: Allowance to the extent exempt u/s 10 House Rent Allowance
B73: Allowance
F74: =E74 -> 0
B75: US10 (14) | F75: 0 | G75: =F74+F75 -> 0
B76: 3. Balance (1 - 2) | I76: =I71-G75 -> Rs. 580,023.00
B77: 4. Deductions: U/s 16
B78: (a) | D78: Standard Deduction (u/s 16 (ia) | G78: =COMPUTATION!K9 -> Rs. 50,000.00
B79: (b) | D79: Entertainment allowance | G79: =COMPUTATION!K7 -> 0
B80: (c) | D80: Tax on employment | G80: =COMPUTATION!K8 -> 0
B81: 5. Aggregate of 4 (a) and (b) | I81: =G79+G80+G78 -> Rs. 50,000.00
B82: Income chargeable under the head "salaries" (3-5) | K82: =I76-I81 -> Rs. 530,023.00
B83: 6. Add: Any other income reported by employee
B84: FD व अन्य स्रोत से प्राप्त ब्याज तथा Bond से प्राप्त ब्याज | F84: =COMPUTATION!I12+COMPUTATION!E12 -> 0
B85: अन्य स्रोत से आय : | F85: =COMPUTATION!I11 -> 0
B86: Saving Bank A/C interest | F86: =COMPUTATION!E11 -> 1000 | G86: =F84+F85+F86 -> Rs. 1,000.00 | I86: =F84+F85+F86 -> Rs. 1,000.00
B87: 7. Gross total income | K87: =K82+I86 -> Rs. 531,023.00
B88: 8. Deductions under Chapter VI A
B89: (A) Section 80C, 80CCC and 80CCD
B90: (a) Section 80C | I90: Gross Amount | K90: Deductible Amount
B91: A | C91: 1 | D91: (A) | E91: =COMPUTATION!C21 -> सामान्य प्रावधायी निधि GPF) | G91: =COMPUTATION!G21 -> 0
C92: 2 | E92: State Insurance | G92: =COMPUTATION!G16 -> 0
C93: 3 | E93: Gr. Acc. Insurance | G93: =COMPUTATION!G22 -> 0
C94: 4 | E94: LIC + ULIP + PLI | G94: =COMPUTATION!G17+COMPUTATION!G25+COMPUTATION!G23+COMPUTATION!M22 -> 0
C95: 5 | E95: PPF | G95: =COMPUTATION!G19 -> 0
C96: 6 | E96: Home Loan Installment (Capital) | G96: =COMPUTATION!G24 -> 0
C97: 7 | E97: Equity link saving schame + Defferred Annuty | G97: =COMPUTATION!M20+COMPUTATION!M21 -> 0
C98: 8 | E98: Pension Plan (US80ccc+US 80CCD)(1) | G98: =COMPUTATION!M16+COMPUTATION!M17 -> 0
C99: 9 | E99: Tution Fee | G99: =COMPUTATION!M19 -> 0
C100: 10 | E100: NSC + Interest on NSC | G100: =COMPUTATION!G20+COMPUTATION!M18 -> 0
C101: 11 | E101: Sukanya Samridhi A/C | G101: =COMPUTATION!M24 -> 0
C102: 12 | E102: Fixed Deposit above 5 years | G102: =COMPUTATION!M25 -> 0
C103: 13 | E103: Mutual Fund | G103: =COMPUTATION!M23 -> 0 | I103: =SUM(G91:H104) -> 0 | K103: =IF(I103<=150000, I103, 150000) -> 0
C104: 14 | E104: SCSS | G104: =COMPUTATION!M25 -> 0 | I104: Total Deducation :
I105: ………………… 3
B106: :: 3 ::
B107: (B) Other Sections (e.g. 80E, 80G etc.) under Chapter VIA | G107: Gross Amount | I107: Qualifying amount | K107: Deductible Amount
B108: 1 | C108: U/S 80D | G108: =COMPUTATION!O29 -> 0 | I108: =G108 -> 0
B109: 2 | C109: U/S 80DD | G109: =COMPUTATION!O30 -> 0 | I109: =G109 -> 0
B110: 3 | C110: U/S 80DDB | G110: =COMPUTATION!O31 -> 0 | I110: 0
B111: 4 | C111: U/S 80E | G111: =COMPUTATION!O32 -> 0 | I111: 0
B112: 5 | C112: U/S 80EE | G112: =COMPUTATION!O33 -> 0 | I112: 0
B113: 6 | C113: U/S 80EEA | G113: =COMPUTATION!O34 -> 0 | I113: =G113 -> 0
B114: 7 | C114: U/S 80EEB | G114: =COMPUTATION!O35 -> 0 | I114: 0
B115: 8 | C115: U/S 80G | G115: =COMPUTATION!O36 -> 0 | I115: =G115 -> 0
B116: 9 | C116: U/S 80GGC | G116: =COMPUTATION!O40 -> 0 | I116: 0
B117: 10 | C117: U/S 80GGA | G117: =COMPUTATION!O39 -> 0 | I117: 0
B118: 11 | C118: U/S 80U | G118: =COMPUTATION!O37 -> 0 | I118: 0
B119: 12 | C119: US 80TTB [Exempt Saving Bank Int. Max. RS. 50,000/-] | G119: =COMPUTATION!O38 -> Rs. 1,000.00 | I119: =G119 -> Rs. 1,000.00 | K119: =ROUND(SUM(I108:J119),0) -> Rs. 1,000.00
B120: 9. Aggregate of deductible amount under chapter VIA | K120: =ROUND((K103+K119),0) -> Rs. 1,000.00
B121: 10. Total income (7-9) | E121: (Roundup Figures of Rs 10) | K121: =ROUND((K87-K120),-1) -> Rs. 530,020.00
B122: 11. Tax on total income | K122: =COMPUTATION!O54 -> Rs. 16,004.00
B123: 12. Rebate U/s 87 A (Taxable Income below Rs. 5,00,000/-) | K123: =COMPUTATION!O55 -> 0
B124: 13. Tax payable (11-12) | K124: =K122-K123 -> Rs. 16,004.00
B125: 14. Education & Health cess @ 4% (on tax computed at S.No. 13) | K125: =COMPUTATION!O57 -> Rs. 640.00
B126: 15. Tax payable (13+14) [Round off U/s 288 B] | K126: =K124+K125 -> Rs. 16,644.00
B127: 16. Less:- Relief under section 89 (Attach Form 10E) | K127: =COMPUTATION!O59 -> 0
B128: 17. Tax payable (15-16) | K128: =K126-K127 -> Rs. 16,644.00
B129: 18. Tax deducted at source u/s 192 (1) | K129: =COMPUTATION!O62 -> 0
B130: =IF(K128>K129,"Income Tax Payable",IF(K128<K129,"Income Tax Refundable","Income Tax Payble/Refundable")) -> Income Tax Payable | K130: =IF(K128>K129,K128-K129,K129-K128) -> Rs. 16,644.00
B131: Verification
B132: I | C132: =B6&"," -> , | F132: Son/Daughter of | G132: =IF(G57="","",G57) ->  | K132: working in the
B133: capacity of | D133: =D58 -> 0 | G133: (designation) do hereby certify that a sum of
B134: Rs. | C134: =K129 -> 0 | D134: =D59 -> Out of range | I134: (in words) has beeen deducted and
B135: deposited to the credit of the Central Government. I further certify that the information given above is true, complete and correct and is based on the books of account, documents, TDS statement, TDS deposited and other available records.
B136: Place | D136: =D62 -> 0
B137: Date | D137: =TODAY() -> 2023-01-16 | F137: Signature of person responsible for deduction of tax
B138: Designation | D138: =D133 -> 0 | F138: Full name : | G138: =B6 -> 0
